bitfinex/quotes_SOLUSD_20251116
["timestamp","ask_amount","ask_price","bid_price","bid_amount"]
[1763335184245,100.0,137.35,137.34,33.11002769]
[1763335184458,21.94,137.57,137.35,9.78882769]
[1763335184752,36.85556417,137.61,137.41,13.76311964]
[1763335184753,100.0,137.42,137.41,13.76311964]
[1763335184954,100.0,137.42,137.41,22.6512]
[1763335185161,100.0,137.42,137.41,3.97429195]
[1763335185533,100.0,137.42,137.41,8.6185839]
[1763335185753,100.0,137.42,137.41,31.2697839]
[1763335186053,100.0,137.42,137.41,39.28587153]
[1763335186257,100.0,137.42,137.41,31.2697839]
[1763335186433,100.0,137.42,137.41,39.28587153]
[1763335186951,100.0,137.42,137.41,31.2697839]
[1763335187330,100.0,137.42,137.41,39.28587153]
[1763335188240,100.0,137.42,137.41,30.66728763]
[1763335188557,100.0,137.42,137.41,37.29500791]
[1763335188749,100.0,137.42,137.41,31.2697839]
[1763335189454,100.0,137.42,137.41,39.28587153]
[1763335189842,100.0,137.42,137.41,31.2697839]
[1763335190167,100.0,137.42,137.4,6.03005275]
[1763335190462,100.0,137.39,137.38,6.03005275]
[1763335190652,100.0,137.37,137.36,6.03005275]
[1763335190829,100.0,137.37,137.35,6.03005275]
[1763335191033,100.0,137.37,137.3,12.02151349]
[1763335191034,100.0,137.35,137.33,6.03005275]
[1763335191245,100.0,137.33,137.32,6.03005275]
[1763335191452,100.0,137.33,137.32,10.0043447]
[1763335191856,100.0,137.33,137.32,3.97429195]
[1763335192049,100.0,137.33,137.32,10.0043447]
[1763335192247,100.0,137.33,137.32,3.97429195]
[1763335192462,100.0,137.33,137.32,26.62549195]
[1763335192838,100.0,137.33,137.32,32.67343065]
[1763335193338,100.0,137.33,137.32,47.10655029]
[1763335193563,100.0,137.33,137.32,41.05861159]
[1763335193760,100.0,137.33,137.32,53.08012508]
[1763335193962,100.0,137.34,137.33,9.78882769]
[1763335194148,100.0,137.34,137.33,17.73741159]
[1763335194353,100.0,137.34,137.33,18.40741159]
[1763335194544,100.0,137.34,137.33,3.97429195]
[1763335195061,100.0,137.34,137.33,10.0260799]
[1763335195562,100.0,137.34,137.33,3.97429195]
[1763335196058,100.0,137.34,137.33,10.02739727]
[1763335196264,100.0,137.34,137.33,3.97429195]
[1763335196839,100.0,137.34,137.33,7.9485839]
[1763335197661,100.0,137.34,137.33,8.6185839]
[1763335197864,100.0,137.34,137.33,26.47295482]
[1763335198176,100.0,137.37,137.36,32.44002769]
[1763335198354,100.0,137.37,137.36,44.47150279]
[1763335198551,100.0,137.37,137.36,45.14150279]
[1763335198767,100.0,137.37,137.36,37.08431964]
[1763335198970,100.0,137.37,137.36,26.62549195]
[1763335199773,100.0,137.37,137.36,27.29549195]
[1763335199967,100.0,137.37,137.36,26.62549195]
[1763335200173,100.0,137.37,137.36,27.29549195]
[1763335200379,100.0,137.39,137.38,22.6512]
[1763335200550,0.1,137.49,137.38,40.38861159]
[1763335200749,100.0,137.39,137.38,32.44002769]
[1763335201269,100.0,137.42,137.41,22.6512]
[1763335201473,100.0,137.42,137.41,30.70806066]
[1763335201657,100.0,137.42,137.41,22.6512]
[1763335202050,100.0,137.42,137.41,39.31664456]
[1763335202366,100.0,137.42,137.41,31.2597839]
[1763335202875,100.0,137.42,137.41,22.6512]
[1763335203058,100.0,137.42,137.41,31.2597839]
[1763335203259,100.0,137.42,137.41,3.97429195]
[1763335203574,100.0,137.4,137.38,8.05807094]
[1763335203958,100.0,137.4,137.39,8.05807094]
[1763335204358,100.0,137.4,137.38,8.05807094]
[1763335204585,100.0,137.37,137.36,6.05053877]
[1763335204884,100.0,137.35,137.34,10.02483072]
[1763335205566,100.0,137.35,137.34,26.62549195]
[1763335205884,100.0,137.35,137.34,38.67005825]
[1763335206357,100.0,137.35,137.34,30.5997839]
[1763335207074,100.0,137.35,137.33,8.07027435]
[1763335207287,100.0,137.35,137.33,10.03039119]
[1763335207852,100.0,137.35,137.34,3.97429195]
[1763335208157,100.0,137.35,137.34,6.05531337]
[1763335208567,100.0,137.35,137.33,10.02960532]
[1763335209263,100.0,137.35,137.33,3.97429195]
[1763335209456,100.0,137.35,137.34,3.97429195]
[1763335209776,100.0,137.35,137.33,6.05531337]
[1763335209990,100.0,137.35,137.29,22.6512]
[1763335209991,100.0,137.33,137.31,10.02960532]
[1763335210491,100.0,137.33,137.32,6.05531337]
[1763335210650,100.0,137.31,137.3,10.02960532]
[1763335210853,100.0,137.29,137.28,10.02960532]
[1763335211169,100.0,137.27,137.26,6.05531337]
[1763335211375,109.78882769,137.27,137.25,6.25531337]
[1763335211598,9.78882769,137.26,137.25,0.2]
[1763335212352,100.0,137.27,137.25,4.17429195]
[1763335212550,100.0,137.27,137.26,3.97429195]
[1763335212981,100.0,137.27,137.25,0.2]
[1763335213158,100.0,137.27,137.26,3.97429195]
[1763335213354,100.0,137.27,137.25,0.2]
[1763335214088,100.0,137.27,137.26,3.97429195]
[1763335214654,100.0,137.27,137.25,4.17429195]
[1763335215063,100.0,137.27,137.26,3.97429195]
[1763335217269,50.0,137.27,137.26,31.2797839]
[1763335217580,100.0,137.31,137.3,22.6512]
[1763335217885,100.0,137.31,137.3,30.5997839]
[1763335218068,100.0,137.35,137.34,22.6512]
[1763335218269,100.0,137.35,137.34,30.5997839]
[1763335218470,100.0,137.35,137.34,31.2797839]
[1763335218762,3.97429195,137.48,137.34,41.06861159]
[1763335218976,100.0,137.35,137.34,36.41431964]
[1763335219191,100.0,137.35,137.34,38.64882336]
[1763335219395,100.0,137.35,137.34,31.2797839]
[1763335220081,100.0,137.35,137.34,30.5997839]
[1763335220284,100.0,137.35,137.34,31.2797839]
[1763335220692,100.0,137.35,137.34,7.9485839]
[1763335220892,100.0,137.35,137.34,13.16781699]
[1763335221396,100.0,137.31,137.3,22.6512]
[1763335221895,100.0,137.31,137.3,31.38023946]
[1763335222092,100.0,137.31,137.3,23.3312]
[1763335222274,100.0,137.31,137.3,22.6512]
[1763335222474,100.0,137.31,137.3,35.82365064]
[1763335222996,100.0,137.31,137.3,38.50308249]
[1763335223996,100.0,137.32,137.31,9.78882769]
[1763335224200,100.0,137.32,137.31,32.77321451]
[1763335224376,100.0,137.35,137.34,22.6512]
[1763335224583,100.0,137.35,137.34,42.94145963]
[1763335224778,100.0,137.35,137.34,43.62145963]
[1763335224977,100.0,137.33,137.32,8.05870076]
[1763335225290,100.0,137.33,137.32,35.81964561]
[1763335226977,100.0,137.33,137.32,30.45404303]
[1763335227278,100.0,137.33,137.32,35.82052017]
[1763335227484,100.0,137.33,137.32,29.77404303]
[1763335227698,100.0,137.33,137.32,37.57688606]
[1763335229112,100.0,137.33,137.32,38.51267584]
[1763335229306,100.0,137.33,137.32,37.57688606]
[1763335229510,100.0,137.33,137.32,29.77404303]
[1763335229708,100.0,137.33,137.32,38.51353198]
[1763335230010,100.0,137.33,137.32,37.57688606]
[1763335230177,2.0,137.47,137.32,24.71451375]
[1763335230385,100.0,137.33,137.32,38.28882769]
[1763335230580,100.0,137.36,137.35,32.44002769]
[1763335231099,32.44002769,137.47,137.35,45.19062375]
[1763335231288,100.0,137.38,137.37,8.05578406]
[1763335231490,100.0,137.38,137.37,15.1798393]
[1763335231683,100.0,137.39,137.38,32.44002769]
[1763335232012,100.0,137.39,137.38,47.35571375]
[1763335232321,100.0,137.39,137.38,17.58167072]
[1763335232490,100.0,137.39,137.38,7.79284303]
[1763335232686,100.0,137.39,137.38,42.52463909]
[1763335232901,100.0,137.39,137.38,7.79284303]
[1763335233103,100.0,137.39,137.38,25.24229387]
[1763335233298,100.0,137.39,137.38,47.89349387]
[1763335233512,100.0,137.39,137.38,25.24229387]
[1763335233815,100.0,137.39,137.38,30.44404303]
[1763335234009,0.1,137.49,137.38,17.58167072]
[1763335234308,100.0,137.42,137.41,28.6916394]
[1763335234488,100.0,137.42,137.41,29.77404303]
[1763335234885,0.1,137.49,137.41,30.44404303]
[1763335235207,100.0,137.42,137.41,32.44002769]
[1763335235383,100.0,137.43,137.42,9.78882769]
[1763335235589,100.0,137.43,137.42,15.81945459]
[1763335235903,100.0,137.46,137.45,22.6512]
[1763335236102,100.0,137.46,137.45,38.48359776]
[1763335236324,100.0,137.46,137.45,29.77404303]
[1763335237291,100.0,137.46,137.45,30.44404303]
[1763335238087,100.0,137.46,137.45,35.79781646]
[1763335238286,100.0,137.46,137.45,29.77404303]
[1763335238695,100.0,137.46,137.45,35.79781646]
[1763335240118,100.0,137.46,137.45,29.77404303]
[1763335240616,100.0,137.46,137.44,6.02377343]
[1763335240803,100.0,137.46,137.45,7.12284303]
[1763335241507,100.0,137.46,137.45,7.79284303]
[1763335241697,100.0,137.46,137.45,13.81661646]
[1763335241898,100.0,137.46,137.45,7.12284303]
[1763335243016,100.0,137.46,137.45,30.44404303]
[1763335243218,100.0,137.47,137.46,9.78882769]
[1763335243525,100.0,137.47,137.46,17.58167072]
[1763335244814,100.1,137.49,137.48,32.44002769]
[1763335244993,100.1,137.49,137.48,39.56287072]
[1763335245189,100.1,137.53,137.52,22.6512]
[1763335245386,100.1,137.53,137.52,52.67628013]
[1763335245615,100.1,137.53,137.52,53.34628013]
[1763335246721,100.1,137.53,137.52,43.55745244]
[1763335246893,100.0,137.51,137.5,5.99056638]
[1763335247095,100.0,137.51,137.5,24.70451375]
[1763335247301,100.0,137.51,137.5,30.69508013]
[1763335247617,100.0,137.52,137.5,13.11340941]
[1763335247792,100.0,137.52,137.51,7.12284303]
[1763335247999,100.0,137.47,137.46,5.99056638]
[1763335248194,100.0,137.47,137.46,7.12284303]
[1763335248516,100.0,137.47,137.46,7.79284303]
[1763335248899,100.0,137.49,137.48,22.6512]
[1763335249104,100.0,137.49,137.48,24.03451375]
[1763335249308,100.0,137.52,137.51,32.44002769]
[1763335249619,100.0,137.52,137.51,46.68571375]
[1763335249822,100.0,137.52,137.51,47.35571375]
[1763335251196,100.0,137.52,137.51,53.32107258]
[1763335251397,100.0,137.52,137.51,47.35571375]
[1763335251620,100.0,137.52,137.51,29.77404303]
[1763335252007,100.0,137.52,137.51,7.12284303]
[1763335252216,100.0,137.49,137.48,6.63535883]
[1763335252410,100.0,137.49,137.48,30.44404303]
[1763335252717,100.0,137.49,137.48,23.54702955]
[1763335252912,100.0,137.49,137.48,7.79284303]
[1763335253114,100.0,137.49,137.48,30.44404303]
[1763335253902,100.0,137.49,137.48,40.23287072]
[1763335254142,100.0,137.49,137.48,46.19822955]
[1763335254802,100.0,137.49,137.48,23.54702955]
[1763335255308,100.0,137.49,137.48,23.54167067]
[1763335256101,100.0,137.49,137.48,17.58167072]
[1763335256309,100.0,137.49,137.48,23.54167067]
[1763335257008,100.0,137.49,137.48,46.19287067]
[1763335257300,100.0,137.49,137.48,32.27594537]
[1763335257498,100.1,137.61,137.6,7.12284303]
[1763335258003,100.1,137.61,137.6,37.56688606]
[1763335258318,100.1,137.61,137.6,24.70451375]
[1763335259702,100.1,137.61,137.6,47.35571375]
[1763335259909,100.1,137.61,137.6,24.70451375]
[1763335260309,100.1,137.61,137.6,22.6512]
[1763335260508,100.1,137.61,137.6,42.85534811]
[1763335260713,100.1,137.61,137.6,28.60780213]
[1763335260914,100.1,137.61,137.6,7.12284303]
[1763335262201,100.1,137.61,137.6,13.07944516]
[1763335262397,100.1,137.61,137.6,24.74451375]
[1763335263634,100.0,137.64,137.63,32.44002769]
[1763335263852,0.1,137.75,137.63,51.9726336]
[1763335264153,100.0,137.65,137.64,23.71066561]
[1763335264344,100.0,137.65,137.64,15.78574754]
[1763335264508,0.1,137.75,137.67,32.44002769]
[1763335264710,100.0,137.68,137.67,40.35262646]
[1763335265022,50.0,137.68,137.67,45.62443161]
[1763335265218,50.0,137.68,137.67,60.58011767]
[1763335265439,50.0,137.68,137.67,53.32344711]
[1763335265637,50.0,137.68,137.67,35.70068651]
[1763335265844,50.0,137.68,137.67,40.27287072]
[1763335266027,50.0,137.68,137.67,7.12284303]
[1763335266235,100.0,137.63,137.61,7.12284303]
[1763335266436,100.0,137.63,137.62,7.12284303]
[1763335266842,100.0,137.58,137.56,5.92664348]
[1763335267353,100.0,137.58,137.57,7.12284303]
[1763335267856,100.0,137.58,137.57,17.62167072]
[1763335268161,100.0,137.59,137.58,9.78882769]
[1763335268343,100.0,137.59,137.58,29.97717496]
[1763335268531,100.0,137.59,137.58,16.91167072]
[1763335268933,100.0,137.57,137.56,5.94266121]
[1763335269142,100.0,137.57,137.56,7.12284303]
[1763335269464,100.0,137.57,137.56,29.77404303]
[1763335269755,100.0,137.57,137.56,40.27287072]
[1763335270168,100.0,137.57,137.56,23.56433193]
[1763335270462,100.0,137.57,137.56,40.27287072]
[1763335270874,100.0,137.57,137.56,46.21553193]
[1763335271153,100.0,137.57,137.56,40.27287072]
[1763335271340,100.0,137.57,137.56,46.21553193]
[1763335272264,100.0,137.57,137.56,46.23206423]
[1763335272432,32.44002769,137.67,137.56,46.23206423]
[1763335272433,100.0,137.6,137.59,32.44002769]
[1763335272631,100.0,137.6,137.59,59.89318346]
[1763335272945,0.41,137.68,137.59,37.98612624]
[1763335273149,100.0,137.6,137.59,18.44427124]
[1763335273355,0.41,137.68,137.62,22.6512]
[1763335273564,100.0,137.63,137.62,32.44002769]
[1763335273887,100.0,137.63,137.61,5.96115071]
[1763335274177,100.0,137.63,137.62,7.12284303]
[1763335274770,100.41,137.63,137.62,7.12284303]
[1763335274971,100.41,137.63,137.58,5.96115071]
[1763335274972,100.0,137.6,137.58,5.96115071]
[1763335275275,100.0,137.6,137.59,7.12284303]
[1763335275480,100.0,137.6,137.58,5.96115071]
[1763335275865,100.0,137.6,137.59,5.3072672]
[1763335276073,100.0,137.6,137.59,27.95891511]
[1763335276373,100.0,137.6,137.59,23.3312]
[1763335276701,100.0,137.6,137.59,32.44002769]
[1763335277066,100.0,137.6,137.59,28.64179133]
[1763335277380,100.0,137.58,137.57,15.76516159]
[1763335277671,100.0,137.59,137.58,9.78882769]
[1763335277873,100.0,137.59,137.58,38.00103311]
[1763335278051,100.0,137.59,137.58,32.68615425]
[1763335278255,100.0,137.59,137.58,30.02820694]
[1763335278456,100.0,137.59,137.58,22.90536391]
[1763335278657,100.0,137.59,137.58,7.12284303]
[1763335278972,100.0,137.59,137.58,13.10797235]
[1763335279355,100.0,137.59,137.58,7.12284303]
[1763335280563,100.0,137.59,137.58,13.11309671]
[1763335281071,100.0,137.59,137.58,7.12284303]
[1763335282277,7.12284303,137.7,137.56,7.12284303]
[1763335282278,100.0,137.57,137.56,7.12284303]
[1763335282480,9.78882769,137.62,137.52,5.99196785]
[1763335282481,50.0,137.53,137.52,5.99196785]
[1763335282780,100.0,137.53,137.52,3.96769001]
[1763335284199,100.0,137.53,137.52,18.40420771]
[1763335284384,100.0,137.53,137.52,26.61889001]
[1763335284584,100.0,137.53,137.52,46.38752315]
[1763335284881,100.0,137.56,137.55,22.6512]
[1763335285080,100.0,137.56,137.55,38.58463268]
[1763335285265,100.0,137.56,137.55,31.26658002]
[1763335285467,100.0,137.56,137.55,38.58463268]
[1763335286458,100.0,137.56,137.55,38.59716369]
[1763335286660,100.0,137.56,137.55,15.94564562]
[1763335286986,3.96769001,137.69,137.49,15.84480796]
[1763335286987,100.0,137.52,137.51,6.01106655]
[1763335287184,100.0,137.5,137.49,30.6614656]
[1763335287391,100.0,137.5,137.49,11.91413304]
[1763335287682,100.0,137.5,137.49,28.67552893]
[1763335288071,100.0,137.5,137.49,54.34617967]
[1763335288773,100.0,137.51,137.5,9.78882769]
[1763335288961,100.0,137.51,137.5,31.80578321]
[1763335289160,100.0,137.54,137.53,32.44002769]
[1763335289376,100.0,137.54,137.53,57.7358443]
[1763335289560,100.0,137.54,137.53,58.4158443]
[1763335290181,100.0,137.54,137.53,46.39541707]
[1763335290779,100.0,137.55,137.54,9.78882769]
[1763335290981,100.0,137.55,137.54,35.09130796]
[1763335291180,100.0,137.55,137.54,25.30248027]
[1763335291388,100.0,137.55,137.54,8.59538002]
[1763335291584,100.0,137.55,137.54,25.30770868]
[1763335291888,100.0,137.55,137.54,7.93538002]
[1763335293495,100.0,137.55,137.54,3.96769001]
[1763335293672,100.0,137.55,137.54,16.62615166]
[1763335293875,2.0,137.67,137.54,16.62615166]
[1763335293876,100.0,137.56,137.55,9.78882769]
[1763335294082,100.0,137.56,137.55,35.77266385]
[1763335294273,100.0,137.56,137.55,30.42289565]
[1763335294607,100.0,137.56,137.55,35.77160969]
[1763335295487,100.0,137.56,137.55,30.42289565]
[1763335295682,100.0,137.56,137.55,35.77226318]
[1763335295877,100.0,137.56,137.55,3.96769001]
[1763335296288,100.0,137.56,137.55,8.59538002]
[1763335296588,100.0,137.56,137.55,30.42289565]
[1763335296770,100.0,137.56,137.55,18.38420771]
[1763335296966,100.0,137.56,137.55,35.77223733]
[1763335297371,100.0,137.56,137.55,58.42343733]
[1763335297693,100.0,137.59,137.58,22.6512]
[1763335297904,100.0,137.59,137.58,26.61889001]
[1763335298068,100.0,137.59,137.58,34.64940773]
[1763335299207,100.0,137.59,137.58,39.31654271]
[1763335299383,100.0,137.59,137.58,38.65654271]
[1763335299584,100.0,137.59,137.58,39.31654271]
[1763335299795,100.0,137.59,137.58,27.27889001]
[1763335300401,100.0,137.59,137.58,22.6512]
[1763335300707,100.0,137.59,137.58,26.61889001]
[1763335301901,100.0,137.59,137.58,3.96769001]
[1763335302086,100.0,137.57,137.56,8.04906875]
[1763335302284,100.0,137.57,137.56,3.96769001]
[1763335302673,100.0,137.57,137.56,10.00465818]
[1763335302976,26.61889001,137.67,137.56,42.42602307]
[1763335303180,26.61889001,137.67,137.56,34.71479731]
[1763335303181,100.0,137.57,137.56,34.71479731]
[1763335303473,100.0,137.57,137.56,22.6512]
[1763335303681,100.0,137.57,137.56,26.61889001]
[1763335303889,100.0,137.57,137.56,34.66640633]
[1763335304072,100.0,137.57,137.56,26.61889001]
[1763335304673,100.0,137.57,137.56,3.96769001]
[1763335305186,100.0,137.57,137.56,34.66844577]
[1763335305776,100.0,137.57,137.56,3.96769001]
[1763335306187,100.0,137.57,137.56,12.01623365]
[1763335306884,100.0,137.57,137.56,3.96769001]
[1763335307086,100.0,137.57,137.56,12.01623365]
[1763335307477,100.0,137.57,137.56,3.96769001]
[1763335308881,100.0,137.57,137.56,12.01623365]
[1763335309081,100.0,137.57,137.56,3.96769001]
[1763335309278,100.0,137.57,137.56,12.01623365]
[1763335309479,103.2,137.68,137.56,49.13131501]
[1763335309480,2.0,137.68,137.56,49.13131501]
[1763335309691,100.0,137.57,137.56,32.44002769]
[1763335310011,100.0,137.6,137.59,22.6512]
[1763335310179,100.0,137.6,137.59,34.72281619]
[1763335310507,100.0,137.6,137.58,22.6512]
[1763335310696,100.0,137.6,137.59,8.06767333]
[1763335311097,100.0,137.6,137.58,12.03536334]
[1763335311303,100.0,137.6,137.59,3.96769001]
[1763335311606,100.0,137.6,137.59,12.03536334]
[1763335311817,100.0,137.6,137.59,3.96769001]
[1763335312022,100.0,137.6,137.59,12.03536334]
[1763335312894,100.0,137.6,137.59,3.96769001]
[1763335313095,100.0,137.6,137.59,12.03786725]
[1763335313293,100.0,137.6,137.59,3.96769001]
[1763335313713,100.0,137.6,137.59,12.03952413]
[1763335314012,100.0,137.6,137.59,3.96769001]
[1763335314312,100.0,137.6,137.59,12.03991746]
[1763335314517,103.96769001,137.6,137.58,8.07222745]
[1763335314711,103.96769001,137.6,137.55,12.09466334]
[1763335314712,100.0,137.58,137.57,6.05781783]
[1763335314910,109.78882769,137.58,137.57,6.05781783]
[1763335315922,109.78882769,137.58,137.56,6.05781783]
[1763335316510,100.0,137.56,137.55,6.05781783]
[1763335316690,100.0,137.56,137.55,3.96769001]
[1763335316890,100.0,137.56,137.55,12.03991746]
[1763335317090,100.0,137.56,137.54,8.07222745]
[1763335317299,100.0,137.56,137.55,8.07222745]
[1763335317711,100.0,137.56,137.54,12.03991746]
[1763335318320,100.0,137.56,137.55,12.03991746]
[1763335318884,100.0,137.56,137.55,8.07222745]
[1763335319092,100.0,137.56,137.55,3.96769001]
[1763335319611,100.0,137.56,137.55,12.03991746]
[1763335319913,100.0,137.56,137.55,12.04593636]
[1763335320239,100.0,137.56,137.55,13.97449367]
[1763335320402,100.0,137.56,137.55,23.76332136]
[1763335320728,100.0,137.56,137.55,13.97449367]
[1763335321087,100.0,137.56,137.55,13.31449367]
[1763335321290,100.0,137.56,137.55,14.01607903]
[1763335321615,100.0,137.56,137.55,9.34838902]
[1763335321805,100.0,137.56,137.55,16.08459822]
[1763335322001,100.0,137.56,137.55,3.96769001]
[1763335322612,100.0,137.56,137.55,20.75251646]
[1763335322800,100.0,137.56,137.55,14.01750064]
[1763335322996,100.0,137.56,137.55,16.08568744]
[1763335323301,100.0,137.56,137.55,14.01916972]
[1763335323496,100.0,137.56,137.55,52.51517768]
[1763335323686,100.0,137.59,137.58,22.6512]
[1763335323886,100.0,137.59,137.58,32.00267971]
[1763335324205,9.78882769,137.7,137.58,52.51517768]
[1763335324390,100.0,137.7,137.69,10.01239793]
[1763335324589,100.0,137.7,137.69,3.96769001]
[1763335324815,100.0,137.7,137.69,6.04339061]
[1763335324992,109.78882769,137.68,137.66,6.04339061]
[1763335325192,109.78882769,137.68,137.67,6.04339061]
[1763335325510,109.78882769,137.68,137.66,6.04339061]
[1763335325812,109.78882769,137.68,137.67,6.04339061]
[1763335326002,100.0,137.68,137.67,10.01108062]
[1763335326206,100.0,137.68,137.67,3.96769001]
[1763335328001,100.0,137.68,137.67,12.02730057]
[1763335328203,100.0,137.68,137.67,16.69499058]
[1763335328517,100.0,137.71,137.7,22.6512]
[1763335328702,100.0,137.71,137.7,26.61889001]
[1763335329021,100.0,137.71,137.7,38.68027056]
[1763335329421,100.0,137.71,137.7,26.61889001]
[1763335329718,100.0,137.71,137.7,16.72907056]
[1763335330091,100.0,137.71,137.7,3.96769001]
[1763335330316,0.1,137.75,137.7,12.69076539]
[1763335330517,100.0,137.74,137.73,30.67176484]
[1763335330707,100.0,137.74,137.73,34.71258055]
[1763335330910,100.0,137.74,137.73,35.41258055]
[1763335331220,100.0,137.74,137.73,28.66676317]
[1763335331398,100.0,137.74,137.72,6.01556317]
[1763335331601,100.0,137.72,137.7,30.66894889]
[1763335331921,100.0,137.72,137.71,11.9854389]
[1763335332426,100.0,137.72,137.71,4.66769001]
[1763335332719,100.0,137.72,137.71,12.67352203]
[1763335332921,100.0,137.72,137.71,4.66769001]
[1763335333106,100.0,137.72,137.71,39.38027056]
[1763335333299,50.0,137.72,137.71,39.38027056]
[1763335333625,100.0,137.72,137.71,42.43608006]
[1763335334214,100.0,137.72,137.71,46.40377007]
[1763335334524,100.0,137.77,137.76,3.96769001]
[1763335334716,100.0,137.77,137.76,4.66769001]
[1763335335021,0.1,137.82,137.76,4.66769001]
[1763335335322,100.0,137.77,137.76,3.96769001]
[1763335335626,100.0,137.77,137.76,7.93538002]
[1763335336197,100.0,137.77,137.76,8.59538002]
[1763335336406,100.0,137.8,137.79,22.6512]
[1763335336701,100.1,137.82,137.81,22.6512]
[1763335337010,100.1,137.82,137.81,30.58658002]
[1763335337318,100.1,137.82,137.81,22.6512]
[1763335337504,100.1,137.82,137.81,26.61889001]
[1763335338127,100.0,137.8,137.78,5.96110112]
[1763335338315,100.0,137.78,137.76,9.92879113]
[1763335338517,0.1,137.82,137.7,6.74181972]
[1763335338518,100.0,137.76,137.75,5.96110112]
[1763335338703,100.0,137.76,137.7,18.70525347]
[1763335338704,100.0,137.72,137.71,18.40029059]
[1763335339036,100.0,137.72,137.71,10.44882769]
[1763335339328,100.0,137.75,137.74,22.6512]
[1763335339510,100.0,137.75,137.74,30.58658002]
[1763335340207,100.0,137.75,137.74,31.24658002]
[1763335340898,0.1,137.82,137.78,22.6512]
[1763335340899,100.0,137.79,137.78,22.6512]
[1763335341097,100.0,137.79,137.78,32.55878044]
[1763335341304,100.0,137.79,137.78,27.27889001]
[1763335341525,100.0,137.79,137.78,33.21878044]
[1763335341908,100.0,137.79,137.78,46.97529814]
[1763335342101,0.1,137.82,137.78,48.95526162]
[1763335342306,100.1,137.82,137.81,7.93538002]
[1763335342726,100.1,137.82,137.81,8.59538002]
[1763335343032,100.1,137.82,137.81,7.73062158]
[1763335343328,100.1,137.82,137.8,5.93150416]
[1763335343329,100.0,137.76,137.75,7.91985391]
[1763335343504,22.6512,137.81,137.68,5.9366601]
[1763335343505,100.0,137.69,137.68,5.9366601]
[1763335343702,100.0,137.69,137.68,7.07062158]
[1763335344102,32.44002769,137.75,137.65,28.5878601]
[1763335344103,100.0,137.66,137.65,28.5878601]
[1763335344305,100.0,137.66,137.65,6.5966601]
[1763335344503,100.0,137.68,137.67,22.6512]
[1763335344926,100.0,137.68,137.67,10.44882769]
[1763335345132,100.0,137.68,137.67,32.50992476]
[1763335345330,100.0,137.71,137.7,22.6512]
[1763335345630,100.0,137.71,137.7,36.79244316]
[1763335346015,100.0,137.71,137.7,29.72182158]
[1763335346241,100.0,137.71,137.7,36.79244316]
[1763335346526,100.0,137.71,137.7,7.07062158]
[1763335347927,100.0,137.71,137.7,36.79244316]
[1763335348137,9.78882769,137.77,137.68,0.66]
[1763335348138,100.0,137.69,137.68,5.93816078]
[1763335348437,100.0,137.66,137.65,6.59816078]
[1763335348636,100.0,137.66,137.65,5.93816078]
[1763335348840,100.0,137.64,137.63,6.61488131]
[1763335349055,100.0,137.64,137.63,28.60608131]
[1763335349251,100.0,137.64,137.63,23.3112]
[1763335349738,100.0,137.64,137.63,36.33670289]
[1763335349942,100.0,137.64,137.62,5.95488131]
[1763335350238,100.0,137.64,137.63,7.07062158]
[1763335351651,9.78882769,137.67,137.57,5.95488131]
[1763335351652,100.0,137.58,137.57,5.95488131]
[1763335351817,100.0,137.56,137.55,5.95488131]
[1763335352018,100.0,137.56,137.55,35.67670289]
[1763335352218,100.0,137.59,137.58,22.6512]